fUST/lending_fUST_20250310
["ID","MTS","AMOUNT","RATE_DAILY","PERIOD"]
[355799176,1741577439588,-1630.263534,0.00035606,14]
[355799177,1741577439598,-1630.263534,0.00035606,14]
[355799178,1741577439608,-151.0,0.00035606,14]
[355799180,1741577439618,-162.356271,0.00035606,14]
[355799182,1741577439628,-1630.263534,0.00035606,14]
[355799184,1741577439639,-1630.263534,0.00035606,14]
[355799185,1741577439648,-151.0,0.00035606,14]
[355799186,1741577439658,-151.0,0.00035606,14]
[355799187,1741577439668,-151.0,0.00035616,14]
[355799188,1741577439678,-151.0,0.00035616,14]
[355799189,1741577439688,-232.899377,0.00035616,14]
[355799190,1741577439698,-454.827764,0.00035616,14]
[355799191,1741577439707,-232.899377,0.00035616,14]
[355799192,1741577439719,-569.246827,0.00035616,14]
[355799193,1741577439729,-454.827764,0.00035616,14]
[355799195,1741577439739,-569.246827,0.00035616,14]
[355799196,1741577439749,-625.036086,0.00035616,14]
[355799197,1741577439758,-625.036086,0.00035616,14]
[355799199,1741577439768,-205.118251,0.00035616,14]
[355799201,1741577439778,-205.118251,0.00035616,14]
[355799203,1741577439788,-151.0,0.00035616,14]
[355799205,1741577439797,-219.701435,0.00035616,14]
[355799207,1741577439807,-790.020302,0.00035616,14]
[355799209,1741577439816,-790.020302,0.00035616,14]
[355799211,1741577439826,-151.0,0.00035616,14]
[355799213,1741577439835,-158.854923,0.00035616,14]
[355799215,1741577439845,-275.911507,0.00035616,14]
[355799217,1741577439854,-275.911507,0.00035616,14]
[355799218,1741577439865,-151.0,0.00035616,10]
[355799220,1741577439877,-151.0,0.00035616,14]
[355799222,1741577439886,-151.0,0.00035616,14]
[355799224,1741577439896,-151.0,0.00035616,14]
[355799226,1741577439906,-151.0,0.00035616,14]
[355799228,1741577439917,-527.844206,0.00035616,14]
[355799230,1741577439926,-915.283349,0.00035616,14]
[355799232,1741577439936,-527.844206,0.00035616,14]
[355799234,1741577439946,-915.283349,0.00035616,14]
[355799236,1741577439955,-151.0,0.00035616,14]
[355799238,1741577439966,-151.0,0.00035616,14]
[355799240,1741577439976,-151.0,0.00035616,14]
[355799242,1741577439985,-151.0,0.00035616,14]
[355799244,1741577439994,-151.0,0.00035616,14]
[355799246,1741577440004,-151.0,0.00035616,14]
[355799248,1741577440013,-1630.263534,0.00035616,14]
[355799250,1741577440022,-1630.263534,0.00035616,14]
[355799252,1741577440032,-151.0,0.00035616,14]
[355799254,1741577440041,-500.0,0.00035616,2]
[355799256,1741577440051,-500.0,0.00035616,2]
[355799258,1741577440061,-500.0,0.00035616,2]
[355799260,1741577440070,-500.0,0.00035616,2]
[355799262,1741577440080,-448.47884054,0.00035616,2]
[355799264,1741577440090,-500.0,0.00035616,2]
[355799266,1741577440100,-500.0,0.00035616,2]
[355799268,1741577440109,-500.0,0.00035616,2]
[355799270,1741577440119,-500.0,0.00035616,2]
[355799272,1741577440128,-500.0,0.00035616,2]
[355799273,1741577440138,-500.0,0.00035616,2]
[355799275,1741577440148,-500.0,0.00035616,2]
[355799277,1741577440157,-500.0,0.00035616,2]
[355799278,1741577440166,-500.0,0.00035616,2]
[355799279,1741577440175,-21982.8632593,0.00035616,11]
[355799280,1741577440185,-151.0,0.00035682,14]
[355799281,1741577440195,-915.283349,0.00035744,14]
[355799282,1741577440204,-915.283349,0.00035744,14]
[355799283,1741577440214,-216.544657,0.00035744,14]
[355799284,1741577440224,-301.061384,0.00035744,14]
[355799285,1741577440234,-250.044986,0.00035754,14]
[355799286,1741577440243,-250.044986,0.00035754,14]
[355799287,1741577440253,-294.334709,0.00035754,14]
[355799288,1741577440263,-812.89081,0.00035754,14]
[355799289,1741577440272,-812.89081,0.00035754,14]
[355799290,1741577440282,-234.805556,0.00035754,14]
[355799291,1741577440291,-234.805556,0.00035754,14]
[355799292,1741577440300,-525.959087,0.00035754,14]
[355799293,1741577440310,-525.959087,0.00035754,14]
[355799294,1741577440319,-672.047923,0.00035754,14]
[355799295,1741577440328,-672.047923,0.00035754,14]
[355799296,1741577440338,-151.0,0.00035754,14]
[355799298,1741577440347,-275.911507,0.00035754,14]
[355799300,1741577440356,-275.911507,0.00035754,14]
[355799301,1741577440366,-151.0,0.00035754,14]
[355799302,1741577440375,-257.243575,0.00035754,14]
[355799303,1741577440385,-151.0,0.00035754,14]
[355799304,1741577440394,-1630.263534,0.00035754,14]
[355799305,1741577440404,-1630.263534,0.00035754,14]
[355799306,1741577440413,-151.0,0.00035754,14]
[355799307,1741577440423,-151.0,0.0003589,14]
[355799308,1741577440433,-169.076238,0.0003589,14]
[355799309,1741577440442,-169.076238,0.0003589,14]
[355799311,1741577440452,-151.0,0.0003589,14]
[355799312,1741577440461,-488.466069,0.0003589,2]
[355799314,1741577440471,-446.33812034,0.000362,98]
[355799315,1741577440480,-151.0,0.00036224,14]
[355799317,1741577440489,-151.0,0.00036224,14]
[355799319,1741577440499,-151.0,0.00036224,14]
[355799321,1741577440508,-790.020302,0.00036224,14]
[355799322,1741577440517,-790.020302,0.00036224,14]
[355799323,1741577440527,-151.623746,0.00036224,10]
[355799324,1741577440536,-151.0,0.00036224,14]
[355799325,1741577440546,-151.0,0.00036224,14]
[355799326,1741577440555,-232.899377,0.00036886,14]
[355799327,1741577440565,-454.827764,0.00036886,14]
[355799328,1741577440574,-232.899377,0.00036886,14]
[355799329,1741577440584,-569.246827,0.00036886,14]
[355799330,1741577440594,-454.827764,0.00036886,14]
[355799331,1741577440603,-569.246827,0.00036886,14]
[355799332,1741577440613,-625.036086,0.00036886,14]
[355799333,1741577440623,-625.036086,0.00036886,14]
[355799334,1741577440632,-205.118251,0.00036886,14]
[355799335,1741577440642,-205.118251,0.00036886,14]
[355799336,1741577440652,-275.911507,0.00036886,14]
[355799337,1741577440661,-275.911507,0.00036886,14]
[355799338,1741577440671,-151.0,0.00036886,14]
[355799339,1741577440680,-233.406062,0.00036886,14]
[355799340,1741577440690,-527.844206,0.00036886,14]
[355799341,1741577440700,-915.283349,0.00036886,14]
[355799342,1741577440710,-527.844206,0.00036886,14]
[355799343,1741577440721,-915.283349,0.00036886,14]
[355799344,1741577440730,-151.0,0.00036886,14]
[355799345,1741577440740,-1630.263534,0.00036886,14]
[355799346,1741577440749,-1630.263534,0.00036886,14]
[355799347,1741577440759,-286.409167,0.00036886,14]
[355799348,1741577440769,-395.84,0.00036966,3]
[355799349,1741577440779,-187.56284303,0.00037,15]
[355799350,1741577440789,-159.10416054,0.00037082,2]
[355799351,1741577440798,-2288.41,0.000371,30]
[355799352,1741577440808,-151.0,0.0003714,14]
[355799353,1741577440818,-151.0,0.0003714,14]
[355799354,1741577440827,-151.0,0.0003714,14]
[355799355,1741577440837,-790.020302,0.0003714,14]
[355799356,1741577440846,-790.020302,0.0003714,14]
[355799357,1741577440855,-151.0,0.0003714,14]
[355799358,1741577440865,-151.0,0.0003714,14]
[355799359,1741577440876,-275.911507,0.0003714,14]
[355799360,1741577440886,-275.911507,0.0003714,14]
[355799361,1741577440895,-151.0,0.0003714,14]
[355799362,1741577440905,-151.0,0.0003714,14]
[355799363,1741577440915,-151.0,0.0003714,14]
[355799364,1741577440924,-151.0,0.0003714,14]
[355799365,1741577440934,-151.0,0.0003714,14]
[355799366,1741577440943,-1630.263534,0.0003714,14]
[355799367,1741577440955,-1630.263534,0.0003714,14]
[355799368,1741577440967,-14623.7970119,0.0003714,3]
[355799369,1741577440977,-150.0,0.00037149,2]
[355799370,1741577440986,-160.0,0.0003715,3]
[355799371,1741577440997,-151.0,0.0003715,14]
[355799372,1741577441007,-151.0,0.0003715,14]
[355799373,1741577441016,-232.899377,0.0003715,14]
[355799374,1741577441026,-454.827764,0.0003715,14]
[355799375,1741577441036,-232.899377,0.0003715,14]
[355799376,1741577441045,-569.246827,0.0003715,14]
[355799377,1741577441055,-454.827764,0.0003715,14]
[355799378,1741577441065,-569.246827,0.0003715,14]
[355799379,1741577441075,-625.036086,0.0003715,14]
[355799380,1741577441085,-625.036086,0.0003715,14]
[355799381,1741577441095,-205.118251,0.0003715,14]
[355799382,1741577441104,-205.118251,0.0003715,14]
[355799383,1741577441113,-151.0,0.0003715,14]
[355799384,1741577441123,-527.844206,0.0003715,14]
[355799385,1741577441132,-915.283349,0.0003715,14]
[355799386,1741577441141,-527.844206,0.0003715,14]
[355799387,1741577441151,-915.283349,0.0003715,14]
[355799388,1741577441160,-915.283349,0.00037158,14]
[355799389,1741577441170,-915.283349,0.00037158,14]
[355799390,1741577441180,-151.0,0.0003716,14]
[355799391,1741577441189,-151.0,0.0003716,14]
[355799392,1741577441198,-234.805556,0.0003716,14]
[355799393,1741577441207,-234.805556,0.0003716,14]
[355799394,1741577441217,-525.959087,0.0003716,14]
[355799395,1741577441226,-525.959087,0.0003716,14]
[355799396,1741577441236,-672.047923,0.0003716,14]
[355799397,1741577441245,-672.047923,0.0003716,14]
[355799398,1741577441255,-1630.263534,0.0003716,14]
[355799399,1741577441264,-1630.263534,0.0003716,14]
[355799400,1741577441273,-244.682431,0.00037168,14]
[355799401,1741577441282,-244.682431,0.00037168,14]
[355799402,1741577441292,-151.0,0.00037168,14]
[355799403,1741577441301,-154.941916,0.00037168,14]
[355799404,1741577441311,-151.0,0.00037168,14]
[355799405,1741577441320,-341.67512,0.00037168,14]
[355799406,1741577441330,-341.67512,0.00037168,14]
[355799407,1741577441339,-151.0,0.00037168,14]
[355799408,1741577441349,-151.0,0.00037168,14]
[355799409,1741577441358,-151.0,0.00037168,14]
[355799410,1741577441368,-151.0,0.00037168,14]
[355799411,1741577441377,-250.044986,0.00037168,14]
[355799412,1741577441386,-250.044986,0.00037168,14]
[355799413,1741577441396,-151.0,0.00037168,14]
[355799414,1741577441406,-812.89081,0.00037168,14]
[355799415,1741577441415,-812.89081,0.00037168,14]
[355799416,1741577441424,-169.076238,0.00037168,14]
[355799417,1741577441433,-169.076238,0.00037168,14]
[355799418,1741577441442,-151.0,0.00037168,14]
[355799419,1741577441452,-151.0,0.00037168,14]
[355799420,1741577441461,-151.0,0.00037168,14]
[355799421,1741577441471,-234.805556,0.00037168,14]
[355799422,1741577441480,-234.805556,0.00037168,14]
[355799423,1741577441489,-525.959087,0.00037168,14]
[355799424,1741577441498,-525.959087,0.00037168,14]
[355799425,1741577441625,-232.899377,0.00037168,14]
[355799426,1741577441636,-454.827764,0.00037168,14]
[355799427,1741577441646,-232.899377,0.00037168,14]
[355799428,1741577441656,-569.246827,0.00037168,14]
[355799429,1741577441666,-454.827764,0.00037168,14]
[355799430,1741577441675,-569.246827,0.00037168,14]
[355799431,1741577441684,-672.047923,0.00037168,14]
[355799432,1741577441694,-672.047923,0.00037168,14]
[355799433,1741577441703,-625.036086,0.00037168,14]
[355799434,1741577441712,-625.036086,0.00037168,14]
[355799435,1741577441722,-205.118251,0.00037168,14]
[355799436,1741577441731,-205.118251,0.00037168,14]
[355799437,1741577441741,-151.0,0.00037168,14]
[355799438,1741577441750,-790.020302,0.00037168,14]
[355799439,1741577441760,-790.020302,0.00037168,14]
[355799440,1741577441769,-151.0,0.00037168,14]
[355799441,1741577441779,-275.911507,0.00037168,14]
[355799442,1741577441789,-275.911507,0.00037168,14]
[355799443,1741577441798,-275.911507,0.00037168,14]
[355799444,1741577441808,-275.911507,0.00037168,14]
[355799445,1741577441818,-151.0,0.00037168,14]
[355799446,1741577441828,-151.0,0.00037168,14]
[355799447,1741577441838,-527.844206,0.00037168,14]
[355799448,1741577441847,-915.283349,0.00037168,14]
[355799449,1741577441856,-527.844206,0.00037168,14]
[355799450,1741577441866,-915.283349,0.00037168,14]
[355799451,1741577441880,-151.0,0.00037168,14]
[355799452,1741577441890,-266.035392,0.00037168,14]
[355799453,1741577441899,-153.924092,0.00037168,14]
[355799454,1741577441909,-151.0,0.00037168,14]
[355799455,1741577441918,-151.0,0.00037168,14]
[355799456,1741577441928,-1630.263534,0.00037168,14]
[355799457,1741577441938,-1630.263534,0.00037168,14]
[355799458,1741577441947,-14623.7970119,0.00037172,3]
[355799459,1741577441957,-1630.263534,0.00037172,14]
[355799460,1741577441968,-1630.263538,0.00037172,14]
[355799461,1741577441978,-232.899377,0.00037182,14]
[355799462,1741577441987,-454.827764,0.00037182,14]
[355799463,1741577441996,-232.899377,0.00037182,14]
[355799464,1741577442007,-569.246827,0.00037182,14]
[355799465,1741577442016,-454.827764,0.00037182,14]
[355799466,1741577442026,-569.246827,0.00037182,14]
[355799467,1741577442035,-625.036086,0.00037182,14]
[355799468,1741577442044,-625.036086,0.00037182,14]
[355799469,1741577442055,-205.118251,0.00037182,14]
[355799470,1741577442064,-205.118251,0.00037182,14]
[355799471,1741577442073,-151.0,0.00037182,14]
[355799472,1741577442082,-790.020302,0.00037182,14]
[355799473,1741577442092,-790.020302,0.00037182,14]
[355799474,1741577442102,-151.0,0.00037182,14]
[355799475,1741577442111,-151.0,0.00037182,14]
[355799476,1741577442120,-151.0,0.00037182,14]
[355799477,1741577442130,-527.844206,0.00037182,14]
[355799478,1741577442139,-915.283349,0.00037182,14]
[355799479,1741577442149,-527.844206,0.00037182,14]
[355799480,1741577442158,-915.283349,0.00037182,14]
[355799481,1741577442168,-503.36547276,0.00037204,5]
[355799482,1741577442177,-151.0,0.00037468,14]
[355799483,1741577442186,-151.0,0.00037468,14]
[355799484,1741577442196,-169.076238,0.00037468,14]
[355799485,1741577442206,-169.076238,0.00037468,14]
[355799486,1741577442216,-151.0,0.00037468,14]
[355799487,1741577442226,-151.0,0.00037468,14]
[355799488,1741577442235,-151.0,0.00037468,14]
[355799489,1741577442244,-151.67799685,0.00038025,5]
[355799490,1741577442253,-503.22361261,0.00038025,5]
[355799491,1741577442262,-500.0,0.00038025,5]
[355799492,1741577442272,-500.0,0.00038025,5]
[355799493,1741577442281,-500.0,0.00038025,5]
[355799494,1741577442290,-500.0,0.00038025,2]
[355799495,1741577442299,-500.0,0.00038025,5]
[355799496,1741577442309,-500.0,0.00038025,5]
[355799497,1741577442317,-255.95372652,0.00038025,5]
[355799498,1741577442327,-503.24579994,0.00038025,5]
[355799499,1741577442336,-500.0,0.00038025,5]
[355799500,1741577442345,-500.0,0.00038025,5]
[355799501,1741577442354,-500.0,0.00038025,5]
[355799502,1741577442364,-500.0,0.00038025,5]
[355799503,1741577442373,-504.3449971,0.00038025,2]
[355799504,1741577442382,-350.00000001,0.00038025,5]
[355799505,1741577442391,-500.0,0.00038327,5]
[355799506,1741577442400,-172.6725724,0.00038519,2]
[355799507,1741577442410,-151.0,0.00038891,14]
[355799508,1741577442419,-151.0,0.00038891,14]
[355799509,1741577442429,-214.116788,0.00038891,14]
[355799510,1741577442439,-1547.99783047,0.00039952,2]
[355799511,1741577442448,-915.283349,0.00040022,14]
[355799512,1741577442458,-915.283349,0.00040022,14]
[355799513,1741577442469,-14623.7970119,0.00040032,3]
[355799514,1741577442478,-151.0,0.00040032,14]
[355799515,1741577442487,-151.0,0.00040032,14]
[355799516,1741577442497,-232.899377,0.00040032,14]
[355799517,1741577442506,-454.827764,0.00040032,14]
[355799518,1741577442516,-232.899377,0.00040032,14]
[355799519,1741577442525,-569.246827,0.00040032,14]
[355799520,1741577442535,-454.827764,0.00040032,14]
[355799521,1741577442544,-569.246827,0.00040032,14]
[355799522,1741577442553,-625.036086,0.00040032,14]
[355799523,1741577442563,-625.036086,0.00040032,14]
[355799524,1741577442573,-205.118251,0.00040032,14]
[355799525,1741577442582,-205.118251,0.00040032,14]
[355799526,1741577442592,-151.0,0.00040032,14]
[355799527,1741577442602,-790.020302,0.00040032,14]
[355799529,1741577442612,-790.020302,0.00040032,14]
[355799530,1741577442622,-151.0,0.00040032,14]
[355799532,1741577442633,-275.911507,0.00040032,14]
[355799534,1741577442642,-275.911507,0.00040032,14]
[355799536,1741577442652,-151.0,0.00040032,14]
[355799537,1741577442662,-151.0,0.00040032,14]
[355799539,1741577442671,-527.844206,0.00040032,14]
[355799540,1741577442681,-527.844206,0.00040032,14]
[355799542,1741577442690,-151.0,0.00040042,14]
[355799544,1741577442699,-341.67512,0.00040042,14]
[355799546,1741577442709,-341.67512,0.00040042,14]
[355799548,1741577442720,-151.0,0.00040042,14]
[355799549,1741577442730,-151.0,0.00040042,14]
[355799550,1741577442739,-151.0,0.00040042,14]
[355799551,1741577442748,-181.804989,0.00040042,14]
[355799552,1741577442757,-250.044986,0.00040042,14]
[355799553,1741577442767,-250.044986,0.00040042,14]
[355799554,1741577442776,-152.222656,0.00040042,14]
[355799555,1741577442785,-812.89081,0.00040042,14]
[355799556,1741577442795,-151.0,0.00040042,14]
[355799557,1741577442804,-812.89081,0.00040042,14]
[355799558,1741577442814,-151.0,0.00040042,14]
[355799559,1741577442823,-169.076238,0.00040042,14]
[355799560,1741577442833,-169.076238,0.00040042,14]
[355799561,1741577442842,-151.0,0.00040042,14]
[355799563,1741577442851,-202.404899,0.00040042,14]
[355799564,1741577442861,-151.0,0.00040042,14]
[355799565,1741577442872,-234.805556,0.00040042,14]
[355799567,1741577442885,-234.805556,0.00040042,14]
[355799568,1741577442894,-234.805556,0.00040042,14]
[355799569,1741577442904,-234.805556,0.00040042,14]
[355799570,1741577442913,-525.959087,0.00040042,14]
[355799571,1741577442923,-525.959087,0.00040042,14]
[355799572,1741577442933,-525.959087,0.00040042,14]
[355799573,1741577442942,-525.959087,0.00040042,14]
[355799574,1741577442952,-232.899377,0.00040042,14]
[355799576,1741577442963,-454.827764,0.00040042,14]
[355799577,1741577442972,-232.899377,0.00040042,14]
[355799578,1741577442982,-569.246827,0.00040042,14]
[355799579,1741577442991,-454.827764,0.00040042,14]
[355799580,1741577443000,-569.246827,0.00040042,14]
[355799581,1741577443009,-672.047923,0.00040042,14]
[355799582,1741577443019,-672.047923,0.00040042,14]
[355799583,1741577443028,-672.047923,0.00040042,14]
[355799584,1741577443038,-672.047923,0.00040042,14]
[355799585,1741577443047,-625.036086,0.00040042,14]
[355799586,1741577443056,-625.036086,0.00040042,14]
[355799587,1741577443066,-205.118251,0.00040042,14]
[355799588,1741577443075,-205.118251,0.00040042,14]
[355799589,1741577443085,-151.0,0.00040042,14]
[355799590,1741577443095,-790.020302,0.00040042,14]
[355799591,1741577443104,-790.020302,0.00040042,14]
[355799592,1741577443114,-151.0,0.00040042,14]
[355799593,1741577443123,-275.911507,0.00040042,14]
[355799594,1741577443133,-275.911507,0.00040042,14]
[355799595,1741577443143,-151.0,0.00040042,14]
[355799596,1741577443152,-151.0,0.00040042,14]
[355799597,1741577443162,-527.844206,0.00040042,14]
[355799598,1741577443172,-915.283349,0.00040042,14]
[355799599,1741577443181,-527.844206,0.00040042,14]
[355799600,1741577443191,-915.28335794,0.00040042,14]
[355799601,1741577443202,-14623.7970119,0.00040042,3]
[355799602,1741577443211,-15555.67399697,0.00040052,2]
[355799603,1741577443221,-244.682431,0.00040052,14]
[355799604,1741577443230,-244.682431,0.00040052,14]
[355799605,1741577443239,-151.0,0.00040052,14]
[355799606,1741577443249,-151.0,0.00040052,14]
[355799607,1741577443258,-341.67512,0.00040052,14]
[355799608,1741577443267,-341.67512,0.00040052,14]
[355799609,1741577443277,-151.0,0.00040052,14]
[355799610,1741577443286,-151.0,0.00040052,14]
[355799611,1741577443295,-151.0,0.00040052,14]
[355799612,1741577443305,-250.044986,0.00040052,14]
[355799613,1741577443315,-250.044986,0.00040052,14]
[355799614,1741577443324,-812.89081,0.00040052,14]
[355799615,1741577443334,-151.0,0.00040052,14]
[355799617,1741577443343,-812.89081,0.00040052,14]
[355799618,1741577443352,-151.0,0.00040052,14]
[355799619,1741577443361,-169.076238,0.00040052,14]
[355799620,1741577443371,-169.076238,0.00040052,14]
[355799621,1741577443381,-169.076238,0.00040052,14]
[355799622,1741577443391,-169.076238,0.00040052,14]
[355799623,1741577443400,-151.0,0.00040052,14]
[355799624,1741577443410,-151.0,0.00040052,14]
[355799625,1741577443516,-151.0,0.00040052,14]
[355799626,1741577443542,-151.0,0.00040052,14]
[355799627,1741577443552,-234.805556,0.00040052,14]
[355799628,1741577443561,-234.805556,0.00040052,14]
[355799629,1741577443571,-234.805556,0.00040052,14]
[355799630,1741577443580,-234.805556,0.00040052,14]
[355799631,1741577443589,-525.959087,0.00040052,14]
[355799632,1741577443599,-525.959087,0.00040052,14]
[355799633,1741577443609,-525.959087,0.00040052,14]
[355799634,1741577443618,-525.959087,0.00040052,14]
[355799635,1741577443628,-232.899377,0.00040052,14]
[355799636,1741577443638,-232.899377,0.00040052,14]
[355799637,1741577443648,-454.827764,0.00040052,14]
[355799638,1741577443658,-454.827764,0.00040052,14]
[355799639,1741577443667,-232.899377,0.00040052,14]
[355799640,1741577443676,-232.899369,0.00040052,14]
[355799641,1741577443686,-569.246827,0.00040052,14]
[355799642,1741577443696,-454.827764,0.00040052,14]
[355799643,1741577443706,-454.82777,0.00040052,14]
[355799644,1741577443716,-569.246827,0.00040052,14]
[355799645,1741577443725,-569.246827,0.00040052,14]
[355799646,1741577443735,-569.24683,0.00040052,14]
[355799648,1741577443746,-672.047923,0.00040052,14]
[355799649,1741577443756,-672.047923,0.00040052,14]
[355799651,1741577443766,-672.047923,0.00040052,14]
[355799652,1741577443775,-672.047923,0.00040052,14]
[355799653,1741577443785,-625.036086,0.00040052,14]
[355799654,1741577443795,-625.036086,0.00040052,14]
[355799655,1741577443804,-625.036086,0.00040052,14]
[355799656,1741577443814,-625.036095,0.00040052,14]
[355799657,1741577443823,-205.118251,0.00040052,14]
[355799658,1741577443833,-205.118251,0.00040052,14]
[355799659,1741577443842,-205.118251,0.00040052,14]
[355799660,1741577443852,-205.118252,0.00040052,14]
[355799661,1741577443862,-151.0,0.00040052,14]
[355799662,1741577443875,-151.0,0.00040052,14]
[355799663,1741577443886,-790.020302,0.00040052,14]
[355799664,1741577443895,-790.020302,0.00040052,14]
[355799665,1741577443905,-790.020302,0.00040052,14]
[355799666,1741577443916,-790.02031,0.00040052,14]
[355799667,1741577443926,-275.911507,0.00040052,14]
[355799668,1741577443935,-275.911507,0.00040052,14]
[355799669,1741577443945,-275.911507,0.00040052,14]
[355799670,1741577443956,-275.911507,0.00040052,14]
[355799671,1741577443967,-151.0,0.00040052,14]
[355799672,1741577443976,-151.0,0.00040052,14]
[355799673,1741577443985,-527.844206,0.00040052,14]
[355799674,1741577443995,-527.844206,0.00040052,14]
[355799675,1741577444004,-527.844206,0.00040052,14]
[355799676,1741577444014,-527.844213,0.00040052,14]
[355799677,1741577444024,-488.466069,0.00041211,2]
[355799678,1741577444033,-153.45,0.000427,30]
[355799679,1741577444043,-1500.0,0.00042971,10]
[355799680,1741577444054,-1500.0,0.00042971,10]
[355799681,1741577444063,-1500.0,0.00042971,10]
[355799682,1741577444073,-2288.41,0.00043,30]
[355799683,1741577444084,-1000.0,0.00043504,10]
[355799684,1741577444093,-694.84635026,0.00043504,10]
[355799685,1741577444103,-1000.0,0.00043504,10]
[355799686,1741577444112,-527.78516767,0.00043504,2]
[355799687,1741577444122,-1000.0,0.00043504,10]
[355799688,1741577444131,-1000.0,0.00043504,10]
[355799689,1741577444141,-1000.0,0.00043504,10]
[355799690,1741577444151,-500.0,0.00043504,10]
[355799691,1741577444160,-508.07289737,0.00043504,10]
[355799692,1741577444169,-1000.0,0.00043504,10]
[355799693,1741577444179,-500.0,0.00043806,10]
[355799694,1741577444188,-244.682431,0.00044313,120]
[355799695,1741577444198,-244.682431,0.00044313,120]
[355799696,1741577444208,-151.0,0.00044321,120]
[355799697,1741577444217,-14623.7970119,0.00044336,3]
[355799698,1741577444227,-250.044986,0.00044346,120]
[355799699,1741577444237,-250.044986,0.00044346,120]
[355799700,1741577444247,-812.89081,0.00044346,120]
[355799701,1741577444257,-812.89081,0.00044346,120]
[355799702,1741577444266,-207.916388,0.00044346,120]
[355799703,1741577444275,-151.0,0.00044356,120]
[355799704,1741577444285,-151.0,0.00044356,120]
[355799705,1741577444294,-234.805556,0.00044356,120]
[355799706,1741577444303,-234.805556,0.00044356,120]
[355799707,1741577444313,-525.959087,0.00044356,120]
[355799708,1741577444324,-525.959087,0.00044356,120]
[355799709,1741577444334,-672.047923,0.00044356,120]
[355799710,1741577444344,-672.047923,0.00044356,120]
[355799711,1741577444353,-164.27,0.000444,30]
[355799712,1741577444363,-151.0,0.00044638,120]
[355799713,1741577444372,-1826.0,0.00045,60]
[355799714,1741577444383,-169.076238,0.00045,120]
[355799715,1741577444392,-169.076238,0.00045,120]
[355799716,1741577444402,-151.0,0.00045,120]
[355799717,1741577444411,-151.0,0.00046394,120]
[355799718,1741577444421,-488.466069,0.00046532,2]
[355799719,1741577444430,-1667.58,0.0004657,120]
[355799720,1741577444440,-3000.0,0.00046575,10]
[355799721,1741577444449,-151.0,0.00046595,120]
[355799722,1741577444459,-341.67512,0.00046595,30]
[355799723,1741577444469,-341.67512,0.00046595,30]
[355799724,1741577444478,-297.421832,0.00046595,120]
[355799725,1741577444487,-151.0,0.00046595,90]
[355799726,1741577444497,-234.805556,0.00046595,120]
[355799727,1741577444507,-234.805565,0.00046595,120]
[355799728,1741577444516,-525.959087,0.00046595,120]
[355799729,1741577444526,-525.959083,0.00046595,120]
[355799730,1741577444535,-672.047923,0.00046595,120]
[355799731,1741577444545,-672.047932,0.00046595,120]
[355799732,1741577444554,-151.0,0.00046778,120]
[355799733,1741577444563,-341.67512,0.00046778,30]
[355799734,1741577444573,-341.67512,0.00046778,30]
[355799735,1741577444583,-151.0,0.00046778,90]
[355799736,1741577444592,-151.0,0.00046778,120]
[355799737,1741577444602,-250.044986,0.00046778,120]
[355799738,1741577444611,-250.044986,0.00046778,120]
[355799739,1741577444621,-812.89081,0.00046778,120]
[355799740,1741577444630,-151.0,0.00046778,120]